bitfinex/quotes_SOLUSD_20251103
["timestamp","ask_amount","ask_price","bid_price","bid_amount"]
[1762183531437,3.78868723,174.5,174.45,6.42230151]
[1762183531636,3.78868723,174.49,174.45,6.42230151]
[1762183531821,3.78868723,174.48,174.46,0.69]
[1762183532024,0.55,174.52,174.46,0.69]
[1762183532219,3.79067189,174.51,174.46,0.69]
[1762183532418,3.79067189,174.5,174.46,0.69]
[1762183532611,3.79067189,174.49,174.46,0.69]
[1762183532812,4.49070587,174.53,174.47,5.7316444]
[1762183533114,3.79449249,174.52,174.47,5.7316444]
[1762183533330,3.79449249,174.51,174.43,0.69]
[1762183533538,2.37535527,174.52,174.4,14.33482421]
[1762183533539,56.16984776,174.5,174.4,14.33482421]
[1762183533747,9.09266426,174.49,174.4,0.69]
[1762183533939,1.82535527,174.47,174.4,0.69]
[1762183534138,3.79449249,174.46,174.4,0.69]
[1762183534324,3.79449249,174.45,174.4,0.69]
[1762183534639,3.79449249,174.44,174.4,0.69]
[1762183534837,0.55,174.46,174.41,5.73361619]
[1762183535043,3.79581048,174.45,174.41,5.73361619]
[1762183535243,3.79581048,174.44,174.41,5.73361619]
[1762183535418,2.37535527,174.46,174.41,6.42361619]
[1762183535745,3.79703303,174.45,174.41,6.42361619]
[1762183535947,3.79703303,174.44,174.41,5.73361619]
[1762183536126,0.55,174.46,174.41,6.42361619]
[1762183536319,3.79697679,174.45,174.41,20.75765666]
[1762183536646,3.79697679,174.44,174.39,0.69]
[1762183536820,3.79697679,174.43,174.39,0.69]
[1762183537014,5.49614855,174.45,174.39,0.69]
[1762183537015,4.94614855,174.45,174.39,6.42417853]
[1762183537228,8.74422207,174.44,174.39,0.69]
[1762183537430,6.28242713,174.45,174.39,0.69]
[1762183537431,3.79807352,174.43,174.39,0.69]
[1762183537749,6.28242713,174.45,174.39,0.69]
[1762183537750,4.74817177,174.47,174.39,6.4241959]
[1762183538049,3.79816308,174.46,174.39,20.75988028]
[1762183538225,3.79816308,174.45,174.4,0.69]
[1762183538445,3.79816308,174.44,174.4,0.69]
[1762183538629,5.49614855,174.47,174.4,0.69]
[1762183538816,9.29558668,174.46,174.39,5.7341959]
[1762183539144,8.74558668,174.45,174.38,0.69]
[1762183539327,3.79943813,174.44,174.38,0.69]
[1762183539525,3.79943813,174.43,174.38,0.69]
[1762183539722,3.79943813,174.42,174.38,0.69]
[1762183539918,5.49614855,174.45,174.38,0.69]
[1762183540159,3.79907281,174.44,174.38,0.69]
[1762183540327,3.79907281,174.43,174.38,0.69]
[1762183540530,4.74817177,174.48,174.38,0.69]
[1762183540768,3.7987773,174.47,174.38,0.69]
[1762183541054,5.42817177,174.57,174.41,0.14216157]
[1762183541216,6.31161073,174.6,174.41,16.78412213]
[1762183541217,4.74817177,174.58,174.41,16.78412213]
[1762183541424,0.68,174.56,174.43,0.14216157]
[1762183541639,0.68,174.56,174.43,16.25204515]
[1762183541860,0.68,174.56,174.44,0.69]
[1762183542020,4.94614855,174.54,174.44,0.69]
[1762183542226,50.0,174.53,174.41,0.69]
[1762183542436,54.74817177,174.53,174.41,0.69]
[1762183542750,4.94614855,174.48,174.4,0.69]
[1762183542948,4.94614855,174.48,174.41,0.69]
[1762183543117,0.68,174.48,174.41,0.69]
[1762183544314,0.68,174.5,174.41,0.69]
[1762183544822,5.62614855,174.5,174.41,0.69]
[1762183545055,5.62614855,174.5,174.42,20.06650612]
[1762183545348,0.68,174.49,174.41,0.69]
[1762183545539,5.62614855,174.49,174.41,6.4235912]
[1762183545869,0.68,174.49,174.41,20.75763167]
[1762183546147,0.68,174.49,174.42,0.69]
[1762183546825,0.68,174.52,174.42,0.69]
[1762183547152,4.94614855,174.49,174.41,14.33404047]
[1762183547647,0.68,174.48,174.41,14.33404047]
[1762183547824,0.68,174.48,174.42,5.73328746]
[1762183548019,4.94614855,174.47,174.42,5.73328746]
[1762183548234,0.68,174.48,174.42,5.73328746]
[1762183548452,0.68,174.47,174.42,5.73328746]
[1762183548858,0.68,174.47,174.42,6.42328746]
[1762183549023,0.68,174.47,174.4,14.33479763]
[1762183549024,4.74817177,174.51,174.44,5.73263013]
[1762183549217,0.68,174.53,174.44,20.06420545]
[1762183549432,0.68,174.53,174.45,0.69]
[1762183549925,5.62614855,174.53,174.45,0.69]
[1762183550128,0.68,174.53,174.45,0.69]
[1762183550327,0.68,174.52,174.45,0.69]
[1762183550927,0.68,174.52,174.46,5.73197294]
[1762183551724,0.68,174.52,174.46,6.42197294]
[1762183551921,0.68,174.52,174.46,20.7519053]
[1762183552139,0.68,174.54,174.47,0.69]
[1762183552543,0.68,174.54,174.46,20.0619053]
[1762183552729,4.94614855,174.53,174.46,5.73197294]
[1762183552920,3.78877877,174.52,174.46,5.73197294]
[1762183553122,3.78877877,174.51,174.45,5.73230151]
[1762183553347,3.78877877,174.5,174.45,20.0630553]
[1762183553533,0.68,174.5,174.45,20.0630553]
[1762183553725,0.68,174.5,174.45,20.7530553]
[1762183553933,0.68,174.52,174.46,0.69]
[1762183554149,3.78909365,174.51,174.46,0.69]
[1762183554350,3.78909365,174.5,174.46,0.69]
[1762183554551,3.78914766,174.49,174.45,5.73230151]
[1762183554724,4.74817177,174.53,174.45,34.3938091]
[1762183554922,3.78919949,174.52,174.46,0.69]
[1762183555158,0.68,174.55,174.47,20.06075542]
[1762183555354,3.78957693,174.54,174.47,20.06075542]
[1762183555644,3.78957693,174.53,174.47,5.7316444]
[1762183555846,3.78957693,174.52,174.47,20.75075542]
[1762183556061,0.68,174.53,174.47,20.75075542]
[1762183556264,3.78791296,174.52,174.47,20.75075542]
[1762183556426,0.68,174.53,174.47,20.75075542]
[1762183556627,0.68,174.54,174.48,0.69]
[1762183556849,3.78725382,174.53,174.48,0.69]
[1762183557145,0.68,174.54,174.49,5.73098744]
[1762183557444,3.78838949,174.53,174.47,0.69]
[1762183557635,3.78838949,174.52,174.47,0.69]
[1762183557828,0.68,174.54,174.47,0.69]
[1762183558027,3.7881208,174.53,174.47,0.69]
[1762183558262,3.7881208,174.52,174.47,0.69]
[1762183558437,0.68,174.54,174.47,0.69]
[1762183558754,3.78868825,174.53,174.47,0.69]
[1762183559066,5.42817177,174.57,174.48,20.05960568]
[1762183559367,4.4683832,174.56,174.48,20.05960568]
[1762183559537,3.7883832,174.55,174.49,0.69]
[1762183559737,0.68,174.56,174.49,0.69]
[1762183559936,3.78782969,174.55,174.49,0.69]
[1762183560248,3.78782969,174.54,174.49,0.69]
[1762183560452,0.68,174.56,174.49,0.69]
[1762183560626,3.78944238,174.55,174.49,0.69]
[1762183560831,3.78944238,174.54,174.49,0.69]
[1762183561026,3.78944238,174.53,174.48,20.05960568]
[1762183561251,50.0,174.57,174.48,14.32828977]
[1762183561252,3.78944238,174.52,174.48,14.32828977]
[1762183561430,3.78944238,174.51,174.48,14.32828977]
[1762183561626,0.68,174.54,174.48,14.32828977]
[1762183561859,3.79218508,174.53,174.48,14.32828977]
[1762183562036,3.79218508,174.52,174.48,14.32828977]
[1762183562229,3.79218508,174.51,174.48,5.73131591]
[1762183562462,5.61670391,174.5,174.43,0.71]
[1762183562642,1.82451883,174.45,174.37,0.71]
[1762183562838,6.29670391,174.44,174.37,0.71]
[1762183563040,3.79218508,174.43,174.37,0.71]
[1762183563344,1.82451883,174.47,174.37,0.71]
[1762183563345,0.68,174.47,174.37,0.71]
[1762183563539,4.47446109,174.46,174.37,0.71]
[1762183563746,3.79446109,174.45,174.37,0.71]
[1762183563953,3.29446109,174.44,174.37,0.71]
[1762183564152,0.68,174.48,174.38,48.74412203]
[1762183564555,0.68,174.48,174.39,0.71]
[1762183565662,0.68,174.5,174.39,0.71]
[1762183566257,0.68,174.5,174.4,48.7385321]
[1762183566442,4.94547332,174.46,174.39,5.73422234]
[1762183566646,4.94547332,174.42,174.35,5.73558933]
[1762183566957,0.68,174.45,174.36,14.33798598]
[1762183567156,0.68,174.45,174.36,15.04798598]
[1762183567338,0.68,174.47,174.37,0.71]
[1762183567867,4.94547332,174.44,174.35,5.73558933]
[1762183568066,0.14216157,174.46,174.36,0.71]
[1762183568243,4.94547332,174.45,174.37,20.07226012]
[1762183568431,5.62547332,174.46,174.37,20.07226012]
[1762183568637,0.68,174.46,174.38,0.71]
[1762183569540,4.94547332,174.42,174.37,5.73493146]
[1762183569738,11.16019082,174.46,174.35,20.78456265]
[1762183569739,25.49012318,174.46,174.35,20.78456265]
[1762183569962,5.62547332,174.45,174.36,0.71]
[1762183570269,4.94547332,174.43,174.37,5.73493146]
[1762183570563,0.68,174.44,174.36,0.71]
[1762183570766,64.33064318,174.46,174.36,0.71]
[1762183570767,4.74817177,174.46,174.36,0.71]
[1762183570951,0.68,174.45,174.36,0.71]
[1762183571353,4.94547332,174.43,174.36,0.71]
[1762183571560,0.68,174.42,174.36,0.71]
[1762183571953,0.68,174.42,174.34,20.78543849]
[1762183572267,0.68,174.42,174.36,5.73526038]
[1762183572659,0.68,174.44,174.37,0.71]
[1762183573548,4.74917103,174.47,174.37,0.71]
[1762183573868,4.94547332,174.45,174.37,0.71]
[1762183574252,0.68,174.44,174.37,0.71]
[1762183574452,0.68,174.44,174.38,5.73460259]
[1762183574453,5.62547332,174.44,174.38,5.73460259]
[1762183574653,11.35810895,174.44,174.38,5.73460259]
[1762183574860,5.62547332,174.43,174.34,0.71]
[1762183575246,0.68,174.42,174.34,0.71]
[1762183575451,4.94547332,174.44,174.34,0.71]
[1762183575676,5.62547332,174.43,174.34,0.71]
[1762183575855,4.94547332,174.42,174.34,0.71]
[1762183576059,4.94547332,174.4,174.34,0.71]
[1762183576256,5.62547332,174.41,174.34,0.71]
[1762183576569,4.47705387,174.4,174.35,5.73558933]
[1762183576748,3.79705387,174.39,174.35,5.73558933]
[1762183577075,0.68,174.39,174.34,0.71]
[1762183577459,0.68,174.39,174.34,6.44582192]
[1762183577985,0.68,174.39,174.29,0.71]
[1762183578148,3.79484257,174.38,174.31,0.71]
[1762183578349,3.79484257,174.37,174.31,0.71]
[1762183578547,3.79474316,174.36,174.31,0.71]
[1762183578780,5.62547332,174.38,174.29,0.71]
[1762183578984,4.47464713,174.37,174.29,0.71]
[1762183579150,3.79464713,174.36,174.3,0.71]
[1762183579472,3.79464713,174.35,174.27,0.1]
[1762183579672,4.94547332,174.34,174.27,0.81]
[1762183579848,3.79217612,174.33,174.27,0.81]
[1762183580044,3.7899424,174.34,174.27,6.54808584]
[1762183580260,3.79044314,174.34,174.27,20.89364158]
[1762183580458,4.47044314,174.38,174.29,5.73756383]
[1762183580776,3.79044314,174.37,174.29,20.0814734]
[1762183580993,3.79044314,174.36,174.29,20.7914734]
[1762183581167,4.47044314,174.36,174.29,20.7914734]
[1762183581356,8.02439008,174.35,174.29,5.73756383]
[1762183581556,3.78945158,174.34,174.29,5.73756383]
[1762183581751,11.81384166,174.34,174.28,5.73787852]
[1762183581970,0.68,174.34,174.28,5.73787852]
[1762183582269,7.34439008,174.35,174.27,6.54817395]
[1762183582270,0.68,174.33,174.27,6.54817395]
[1762183582675,10.20559579,174.33,174.27,0.1]
[1762183582851,50.14216157,174.27,174.21,0.1]
[1762183583051,7.34439008,174.25,174.21,0.1]
[1762183583364,4.46926002,174.26,174.21,0.1]
[1762183583563,0.68,174.25,174.21,0.1]
[1762183583774,0.68,174.25,174.21,5.84006695]
[1762183583957,4.46926002,174.28,174.22,0.71]
[1762183584150,0.68,174.28,174.21,5.84006695]
[1762183584351,0.68,174.27,174.21,5.84006695]
[1762183584870,6.41834555,174.27,174.21,5.84006695]
[1762183585064,17.53822059,174.27,174.21,5.84006695]
[1762183585386,4.45094345,174.26,174.21,0.1]
[1762183585596,11.79533353,174.26,174.21,0.1]
[1762183585773,7.34439008,174.24,174.21,0.1]
[1762183586086,4.45094345,174.25,174.21,0.1]
[1762183586284,0.68,174.24,174.21,0.1]
[1762183586466,3.77094345,174.25,174.21,5.84019413]
[1762183586467,0.68,174.25,174.21,5.84019413]
[1762183586670,0.7,174.24,174.21,0.1]
[1762183587194,4.47094345,174.26,174.21,0.1]
[1762183587365,0.7,174.25,174.21,0.1]
[1762183587560,3.77094345,174.26,174.21,5.84019494]
[1762183587877,0.7,174.27,174.21,5.84019494]
[1762183588062,3.77094345,174.26,174.21,5.84008538]
[1762183588264,7.34439008,174.25,174.21,0.1]
[1762183588528,50.0,174.2,174.05,163.0]
[1762183588674,7.34439008,174.17,174.1,0.67]
[1762183588879,50.7,174.2,174.1,0.67]
[1762183589076,7.34439008,174.2,174.1,0.67]
[1762183589278,0.7,174.19,174.1,0.67]
[1762183589588,0.7,174.19,174.08,0.67]
[1762183589887,0.7,174.19,174.11,0.67]
[1762183590095,3.75376041,174.2,174.11,0.67]
[1762183590266,0.7,174.2,174.11,0.67]
[1762183590597,0.7,174.19,174.12,5.74316563]
[1762183590777,20.79322303,174.19,174.01,163.0]
[1762183590969,20.79322303,174.19,173.97,14.36969511]
[1762183590970,7.34439008,174.08,173.97,14.36969511]
[1762183591173,0.14216157,174.1,174.01,0.67]
[1762183591385,50.0,174.13,174.01,0.67]
[1762183591574,50.0,174.18,174.01,0.67]
[1762183591575,0.14216157,174.14,174.01,0.67]
[1762183591877,8.04439008,174.12,174.01,0.67]
[1762183592080,0.7,174.12,174.01,0.67]
[1762183592299,0.7,174.11,174.01,0.67]
[1762183592473,0.7,174.11,174.02,20.11263072]
[1762183592677,56.58566998,174.11,174.0,1.0]
[1762183592996,50.14216157,174.09,174.0,1.0]
[1762183593171,7.34439008,174.07,174.0,1.0]
[1762183593372,0.7,174.08,174.0,1.0]
[1762183593576,0.7,174.1,174.01,20.81378656]
[1762183593895,0.7,174.1,174.02,0.7]
[1762183593896,7.34439008,174.09,174.02,0.7]
[1762183594098,0.7,174.09,174.02,0.7]
[1762183594476,0.7,174.09,174.03,5.74613572]
[1762183594699,7.34439008,174.05,174.0,1.0]
[1762183594879,7.34439008,174.04,174.0,1.0]
[1762183595207,7.34439008,174.03,174.0,1.0]
[1762183595404,8.04439008,174.03,174.0,1.0]
[1762183595605,0.7,174.02,174.0,1.0]
[1762183595972,7.34439008,174.01,174.0,1.0]
[1762183596202,7.34439008,174.01,173.84,28.76044313]
[1762183596203,68.54650755,174.01,173.74,15.6714876]
[1762183596481,50.14216157,173.78,173.74,15.6714876]
[1762183596714,100.0,173.83,173.75,0.7]
[1762183596875,50.0,173.83,173.75,0.7]
[1762183597071,0.14216157,173.83,173.74,35.81647934]
[1762183597290,53.84356021,173.83,173.74,36.51647934]
[1762183597572,0.14216157,173.83,173.74,15.6714876]
[1762183597801,100.0,173.82,173.74,15.6714876]
[1762183598002,50.0,173.77,173.74,15.6714876]
[1762183598298,0.14216157,173.76,173.75,0.7]
[1762183598600,50.0,173.83,173.75,0.7]
[1762183598898,50.0,173.82,173.75,0.7]
[1762183599089,14.37647907,173.9,173.75,0.7]
[1762183599090,0.14216157,173.83,173.75,0.7]
[1762183599283,7.34439008,173.8,173.74,21.42719662]
[1762183599483,50.0,173.8,173.74,15.52932604]
[1762183599790,50.0,173.8,173.64,4.0]
[1762183599791,50.0,173.65,173.64,4.0]
[1762183600114,100.0,173.65,173.64,4.0]
[1762183600400,7.34439008,173.68,173.64,9.75885287]
[1762183600571,50.0,173.7,173.64,4.0]
[1762183600778,50.0,173.68,173.64,9.75887313]
[1762183600978,7.34439008,173.85,173.65,0.7]
[1762183600979,50.0,173.75,173.65,0.7]
[1762183601216,100.0,173.77,173.65,0.7]
[1762183601383,100.0,173.79,173.65,0.7]
[1762183601709,14.37791417,173.88,173.65,0.7]
[1762183601710,7.34439008,173.8,173.65,0.7]
[1762183601886,57.34439008,173.78,173.65,0.7]
[1762183602081,50.0,173.8,173.65,0.7]
[1762183602282,50.0,173.78,173.65,0.7]
[1762183602483,50.0,173.75,173.65,0.7]
[1762183602708,7.34439008,173.74,173.65,0.7]
[1762183602998,7.34439008,173.73,173.65,6.4586411]
[1762183603202,7.34439008,173.68,173.65,0.7]
[1762183603404,7.34439008,173.67,173.65,0.7]
[1762183603803,7.34439008,173.67,173.64,4.0]
[1762183603804,7.34439008,173.68,173.66,0.7]
[1762183603987,7.34439008,173.7,173.66,0.7]
[1762183604187,50.0,173.7,173.64,4.0]
[1762183604398,7.34439008,173.69,173.64,4.7]
[1762183604595,50.0,173.7,173.64,10.4589991]
[1762183604783,50.0,173.68,173.64,4.0]
[1762183604991,7.34439008,173.69,173.65,0.7]
[1762183605214,50.0,173.72,173.65,0.7]
[1762183605414,7.34439008,173.68,173.64,4.0]
[1762183605610,50.0,173.69,173.64,4.0]
[1762183605807,7.34439008,173.68,173.64,4.0]
[1762183605990,50.0,173.67,173.64,4.0]
[1762183606188,57.34439008,173.65,173.64,4.0]
[1762183606487,50.0,173.65,173.64,4.0]
[1762183606688,57.34439008,173.65,173.64,4.0]
[1762183607404,50.0,173.62,173.57,0.7]
[1762183607582,7.34439008,173.58,173.57,0.7]
[1762183607780,50.0,173.66,173.57,6.4612898]
[1762183608089,7.34439008,173.58,173.57,0.7]
[1762183608289,7.34439008,173.58,173.45,311.89799933]
[1762183608290,7.34439008,173.58,173.52,0.7]
[1762183608491,7.34439008,173.56,173.52,6.46286156]
[1762183608700,7.34439008,173.55,173.52,0.7]
[1762183609021,0.14216157,173.63,173.42,163.0]
[1762183609022,50.0,173.54,173.48,0.7]
[1762183609184,50.0,173.59,173.52,0.7]
[1762183609389,50.0,173.54,173.4,45.68354892]
[1762183609698,50.0,173.52,173.47,6.4646487]
[1762183609995,7.34439008,173.53,173.48,5.7643322]
[1762183610200,50.0,173.52,173.47,0.7]
[1762183610383,50.0,173.52,173.44,6.46568177]
[1762183610579,105.76302443,173.52,173.44,0.7]
[1762183610802,50.0,173.5,173.4,16.84917355]
[1762183611023,1.99999999,173.36,173.32,2.99957229]
[1762183611224,14.68878016,173.41,173.18,17.63429752]
[1762183611225,50.0,173.26,173.18,17.63429752]
[1762183611379,7.34439008,173.19,173.18,17.63429752]
[1762183611584,9.6008163,173.35,173.18,17.63429752]
[1762183611585,50.0,173.23,173.18,17.63429752]
[1762183611786,50.0,173.14,173.07,18.0268595]
[1762183611998,10.56627368,173.06,173.0,33.10670988]
[1762183612205,10.56627368,173.06,172.68,1.99999999]
[1762183612206,8.56627369,172.91,172.64,50.0]
[1762183612410,1.899957,172.84,172.55,50.28254]
[1762183612591,1.899957,172.71,172.55,14.77102147]
[1762183612903,50.0,172.82,172.67,0.7]
[1762183613230,0.10000084,172.9,172.7,0.10004299]
[1762183613384,50.0,172.8,172.79,0.10004299]
[1762183613588,49.42197,172.8,172.78,0.7]
[1762183613788,0.10000084,172.9,172.8,1.60004298]
[1762183614088,50.0,173.03,172.77,1.60004298]
[1762183614329,1.99999999,173.08,172.64,1.99999999]
[1762183614627,5.78302105,172.92,172.62,19.59710744]
[1762183614809,1.99999999,172.75,172.62,19.59710744]
[1762183615009,1.90413999,172.77,172.67,49.0]
[1762183615332,5.06379112,172.95,172.51,19.64220942]
[1762183615333,0.62,172.56,172.51,19.64220942]
[1762183615537,0.62,172.41,172.4,17.3524695]
[1762183615693,0.62,172.51,172.41,6.5001276]
[1762183615891,0.62,172.46,172.41,0.7]
[1762183616093,0.62,172.41,171.94,28.19784719]
[1762183616309,49.14715235,172.95,171.94,28.19784719]
[1762183616310,0.62,172.1,171.97,50.0]
[1762183616521,2.0,172.19,171.86,4.96365261]
[1762183616522,0.62,172.34,172.03,1.37999999]
[1762183616820,50.0,172.35,172.19,1.37999999]
[1762183616997,50.0,172.26,172.12,1.37999999]
[1762183617201,50.0,172.26,172.09,5.31064663]
[1762183617202,50.0,172.25,172.09,5.31064663]
[1762183617400,0.62,172.54,172.26,1.37999999]
[1762183617629,0.62,172.7,172.45,1.37999999]
[1762183617921,0.62,172.73,172.58,1.37999999]
[1762183618103,18.10997591,172.9,172.51,3.0096746]
[1762183618104,50.0,172.71,172.51,3.0096746]
[1762183618305,0.62,172.84,172.65,1.37999999]
[1762183618614,6.79661966,172.83,172.69,1.37999999]
[1762183618921,0.62,172.92,172.74,1.37999999]
[1762183619090,5.78051833,173.0,172.7,0.7]
[1762183619091,50.0,172.87,172.7,2.07999999]
[1762183619290,0.7,173.02,172.7,2.07999999]
[1762183619291,0.62,172.95,172.73,1.37999999]
[1762183619497,17.41452371,172.98,172.76,1.37999999]
[1762183619498,50.0,172.97,172.76,1.37999999]
[1762183619700,50.0,172.88,172.75,1.37999999]
[1762183619914,0.62,172.87,172.71,0.7]
[1762183620121,2.0,172.99,172.51,3.0096746]
[1762183620122,0.62,172.9,172.72,0.7]
[1762183620311,0.62,172.86,172.72,0.7]
[1762183620620,0.62,172.82,172.72,0.7]
[1762183620818,50.0,172.82,172.72,6.48954388]
[1762183621121,17.37900935,173.14,172.91,1.37999999]
[1762183621300,17.37900935,173.14,172.72,67.36670238]
[1762183621301,50.0,173.06,172.95,1.37999999]
[1762183621492,17.37900935,173.14,172.97,1.37999999]
[1762183621698,0.62,173.14,172.96,1.37999999]
[1762183621891,0.62,173.02,172.81,1.37999999]
[1762183622097,0.62,173.05,172.88,1.37999999]
[1762183622327,5.77442435,173.18,172.82,1.37999999]
[1762183622328,0.62,173.02,172.82,1.37999999]
[1762183622526,5.77446082,173.18,172.72,78.16101213]
[1762183622527,0.62,173.06,172.87,1.37999999]
[1762183622736,6.39799544,173.08,172.86,5.78502834]
[1762183622913,50.0,173.19,172.84,1.37999999]
[1762183622914,0.62,173.03,172.84,1.37999999]
[1762183623115,0.62,173.03,172.83,6.48589574]
[1762183623116,50.0,173.09,172.94,1.37999999]
[1762183623309,50.62,173.14,172.96,1.37999999]
[1762183623562,0.62,173.2,173.03,1.37999999]
[1762183623719,50.0,173.24,172.95,0.7]
[1762183623720,0.62,173.24,173.04,1.37999999]
[1762183624034,0.62,173.23,173.06,1.37999999]
[1762183624237,0.62,173.13,172.97,1.37999999]
[1762183624411,0.62,173.16,172.98,0.7]
[1762183624732,0.62,173.11,172.98,0.7]
[1762183624917,0.62,173.01,172.98,0.7]
[1762183625117,0.62,173.03,172.98,0.7]
[1762183625411,0.62,173.03,172.93,0.7]
[1762183625627,0.62,173.05,172.93,0.7]
[1762183625811,0.62,173.12,172.93,2.07999999]
[1762183626011,0.62,173.03,172.93,0.7]
[1762183626559,0.62,172.99,172.89,0.7]
[1762183626843,0.62,173.11,172.89,6.48381705]
[1762183627019,0.62,173.07,172.93,1.37999999]
[1762183627218,5.77548256,173.15,172.9,0.7]
[1762183627219,0.62,172.96,172.9,0.7]
[1762183627418,0.62,172.92,172.84,0.7]
[1762183627637,0.62,173.03,172.84,2.07999999]
[1762183627834,50.0,173.14,172.87,1.37999999]
[1762183627835,0.62,173.04,172.87,1.37999999]
[1762183628020,0.62,172.98,172.88,0.7]
[1762183628333,50.0,173.07,172.77,1.37999999]
[1762183628334,0.62,172.82,172.77,0.7]
[1762183628576,0.62,172.85,172.78,0.7]
[1762183628847,0.62,172.77,172.62,5.79307148]
[1762183629049,0.62,172.76,172.62,5.79307148]
[1762183629253,0.62,172.84,172.66,1.37999999]
[1762183629417,0.62,172.89,172.7,1.37999999]
[1762183629611,0.62,172.89,172.72,1.37999999]
[1762183630048,8.78435612,172.88,172.73,0.7]
[1762183630272,0.62,172.84,172.73,0.7]
[1762183630457,8.78435612,172.83,172.73,0.7]
[1762183630665,5.7833555,172.91,172.73,0.7]
[1762183630666,0.62,172.81,172.73,0.7]
[1762183630962,0.62,172.89,172.73,0.7]
[1762183631143,8.78435612,172.87,172.73,6.48915455]
[1762183631348,0.62,172.82,172.74,0.7]
[1762183631575,0.62,172.82,172.56,17.40088744]
[1762183631576,0.62,172.73,172.57,0.7]
[1762183631742,8.78435612,172.69,172.57,0.7]
[1762183631949,0.62,172.65,172.57,0.7]
[1762183632135,8.16435612,172.58,172.57,0.7]
[1762183632342,0.62,172.63,172.57,0.7]
[1762183632535,0.62,172.65,172.57,0.7]
[1762183632763,8.16435612,172.58,172.57,0.7]
[1762183633059,8.16435612,172.58,172.53,0.7]
[1762183633259,8.16435612,172.54,172.53,0.7]
[1762183633585,0.62,172.47,172.37,0.7]
[1762183633768,8.16435612,172.4,172.37,0.7]
[1762183633959,8.16435612,172.4,172.14,20.33228766]
[1762183633960,0.62,172.39,172.32,0.7]
[1762183634161,0.62,172.3,172.15,0.7]
[1762183634365,0.62,172.34,172.16,1.37999999]
[1762183634667,8.16435612,172.33,172.22,5.80652653]
[1762183634848,0.62,172.39,172.22,5.80652653]
[1762183635168,50.0,172.5,172.22,5.80652653]
[1762183635169,0.62,172.44,172.24,1.37999999]
[1762183635369,0.62,172.32,172.17,0.7]
[1762183635580,0.62,172.35,172.17,0.7]
[1762183635749,0.62,172.36,172.17,0.7]
[1762183636091,0.62,172.5,172.3,1.37999999]
[1762183636257,0.62,172.44,172.27,1.37999999]
[1762183636658,0.62,172.46,172.3,14.50935847]
[1762183636858,0.62,172.46,172.11,17.24]
[1762183636859,50.0,172.3,172.19,0.1]
[1762183637057,0.62,172.24,172.19,0.1]
[1762183637263,0.62,172.25,172.19,0.8]
[1762183637477,0.62,172.23,172.19,0.1]
[1762183637672,0.62,172.24,172.19,0.1]
[1762183637872,0.62,172.25,172.19,0.1]
[1762183638078,0.2295,172.3,172.2,2.07999999]
[1762183638279,0.2295,172.3,172.21,0.7]
[1762183638685,0.62,172.21,172.19,0.1]
[1762183638982,0.62,172.25,172.19,0.8]
[1762183639162,0.62,172.25,172.19,0.1]
[1762183639561,0.62,172.2,172.19,0.1]
[1762183639788,0.62,172.1,172.07,21.55991736]
[1762183639976,0.62,172.1,171.95,0.7]
[1762183639977,0.62,172.02,171.95,0.7]
[1762183640161,0.62,172.01,171.95,0.7]
[1762183640366,0.62,172.02,171.95,0.7]
[1762183640583,0.62,172.02,171.9,0.7]
[1762183640584,0.62,172.01,171.9,0.7]